fUST/lending_fUST_20250221
["ID","MTS","AMOUNT","RATE_DAILY","PERIOD"]
[353869476,1740103848352,-1270.09,0.00014356,2]
[353869477,1740103848363,-430.04102964,0.00014356,2]
[353869478,1740103848373,-2494.63,0.00014356,2]
[353869479,1740103848383,-1010.65,0.00014356,2]
[353869480,1740103848393,-308.78555977,0.00014357,2]
[353869481,1740103848403,-748.0,0.000144,2]
[353869482,1740103848413,-500.0,0.00014438,2]
[353869483,1740103848423,-500.0,0.00014438,2]
[353869484,1740103848432,-500.0,0.00014438,2]
[353869485,1740103848441,-507.48,0.00014438,2]
[353869486,1740103848450,-500.0,0.00014438,2]
[353869487,1740103848460,-656.6,0.00014438,2]
[353869488,1740103848471,-500.0,0.00014438,2]
[353869489,1740103848480,-618.95,0.00014438,2]
[353869490,1740103848489,-500.0,0.00014438,2]
[353869491,1740103848499,-500.0,0.00014438,2]
[353869492,1740103848508,-500.0,0.00014438,2]
[353869493,1740103848517,-500.0,0.00014438,2]
[353869494,1740103848526,-500.0,0.00014438,2]
[353869495,1740103848536,-518.7,0.00014438,2]
[353869496,1740103848546,-705.0,0.00014438,2]
[353869497,1740103848555,-500.0,0.00014438,2]
[353869498,1740103848565,-500.0,0.00014438,2]
[353869499,1740103848574,-500.0,0.00014438,2]
[353869500,1740103848584,-500.0,0.00014438,2]
[353869501,1740103848604,-676.23,0.00014438,2]
[353869502,1740103848615,-500.0,0.00014438,2]
[353869503,1740103848626,-784.49,0.00014438,2]
[353869504,1740103848636,-691.77,0.00014438,2]
[353869505,1740103848646,-500.0,0.00014438,2]
[353869506,1740103848656,-1600.31,0.00014438,2]
[353869507,1740103848668,-758.34,0.00014438,2]
[353869508,1740103848678,-23723.89,0.00014438,2]
[353869509,1740103848688,-922.28,0.00014438,2]
[353869510,1740103848699,-500.0,0.00014438,2]
[353869511,1740103848710,-1243.5,0.00014438,2]
[353869512,1740103848720,-2146.67,0.00014438,2]
[353869513,1740103848730,-500.0,0.00014438,2]
[353869514,1740103848740,-4235.7,0.00014438,2]
[353869515,1740103848750,-865.03,0.00014438,2]
[353869516,1740103848760,-500.0,0.00014438,2]
[353869517,1740103848770,-500.0,0.00014438,2]
[353869518,1740103848780,-580.62,0.00014438,2]
[353869519,1740103848789,-500.0,0.00014438,2]
[353869520,1740103848800,-636.34537082,0.00014438,2]
[353869521,1740103848810,-2273.23,0.00014438,2]
[353869522,1740103848820,-500.0,0.00014438,2]
[353869523,1740103848830,-1263.28,0.00014438,2]
[353869524,1740103848844,-2448.71,0.00014438,2]
[353869525,1740103848854,-500.0,0.00014438,2]
[353869526,1740103848864,-860.48,0.00014438,2]
[353869527,1740103848874,-500.0,0.00014438,2]
[353869528,1740103848885,-500.0,0.00014438,2]
[353869529,1740103848896,-574.94,0.00014438,2]
[353869530,1740103848906,-500.0,0.00014438,2]
[353869531,1740103848917,-702.5,0.00014438,2]
[353869532,1740103848930,-1361.24,0.00014438,2]
[353869533,1740103848940,-500.0,0.00014438,2]
[353869534,1740103848950,-500.0,0.00014438,2]
[353869535,1740103848960,-1319.72,0.00014438,2]
[353869536,1740103848971,-1665.41,0.00014438,2]
[353869537,1740103848981,-1335.88,0.00014438,2]
[353869538,1740103848991,-500.0,0.00014438,2]
[353869539,1740103849001,-500.0,0.00014438,2]
[353869540,1740103849011,-11700.84,0.00014438,2]
[353869541,1740103849022,-500.0,0.00014438,2]
[353869542,1740103849032,-3710.11,0.00014438,2]
[353869543,1740103849043,-487.08411756,0.00014438,2]
[353869544,1740103849053,-500.0,0.00014438,2]
[353869545,1740103849063,-500.0,0.00014438,2]
[353869546,1740103849073,-1682.17,0.00014438,2]
[353869547,1740103849083,-1224.15,0.00014438,2]
[353869548,1740103849093,-500.0,0.00014438,2]
[353869549,1740103849103,-627.32,0.00014438,2]
[353869550,1740103849112,-500.0,0.00014438,2]
[353869551,1740103849123,-500.0,0.00014438,2]
[353869552,1740103849133,-500.0,0.00014438,2]
[353869553,1740103849143,-5211.79,0.00014438,2]
[353869554,1740103849152,-1488.6,0.00014438,2]
[353869555,1740103849163,-1693.02,0.00014438,2]
[353869556,1740103849174,-1270.09,0.00014438,2]
[353869557,1740103849183,-2494.63,0.00014438,2]
[353869558,1740103849194,-1010.65,0.00014438,2]
[353869559,1740103849205,-700.0,0.00014438,2]
[353869560,1740103849215,-168.40801011,0.00014466,2]
[353869561,1740103849225,-2902.99,0.000145,2]
[353869562,1740103849235,-500.0,0.0001452,2]
[353869563,1740103849244,-500.0,0.0001452,2]
[353869564,1740103849254,-500.0,0.0001452,2]
[353869565,1740103849264,-507.48,0.0001452,2]
[353869566,1740103849275,-500.0,0.0001452,2]
[353869567,1740103849285,-656.6,0.0001452,2]
[353869568,1740103849296,-500.0,0.0001452,2]
[353869569,1740103849305,-618.95,0.0001452,2]
[353869570,1740103849322,-500.0,0.0001452,2]
[353869571,1740103849340,-500.0,0.0001452,2]
[353869572,1740103849356,-500.0,0.0001452,2]
[353869573,1740103849371,-500.0,0.0001452,2]
[353869574,1740103849383,-500.0,0.0001452,2]
[353869575,1740103849399,-518.7,0.0001452,2]
[353869576,1740103849414,-705.0,0.0001452,2]
[353869577,1740103849429,-500.0,0.0001452,2]
[353869578,1740103849447,-500.0,0.0001452,2]
[353869579,1740103849461,-500.0,0.0001452,2]
[353869580,1740103849476,-500.0,0.0001452,2]
[353869581,1740103849491,-676.23,0.0001452,2]
[353869582,1740103849505,-500.0,0.0001452,2]
[353869583,1740103849518,-784.49,0.0001452,2]
[353869584,1740103849533,-691.77,0.0001452,2]
[353869585,1740103849546,-508.37035668,0.0001452,2]
[353869586,1740103849561,-1600.31,0.0001452,2]
[353869587,1740103849574,-758.34,0.0001452,2]
[353869588,1740103849587,-23723.89,0.0001452,2]
[353869589,1740103849598,-922.28,0.0001452,2]
[353869590,1740103849610,-500.0,0.0001452,2]
[353869591,1740103849622,-1243.5,0.0001452,2]
[353869592,1740103849635,-2146.67,0.0001452,2]
[353869593,1740103849648,-507.07882964,0.0001452,2]
[353869594,1740103849662,-4235.7,0.0001452,2]
[353869595,1740103849675,-865.03,0.0001452,2]
[353869596,1740103849689,-508.18143835,0.0001452,2]
[353869597,1740103849703,-500.0,0.0001452,2]
[353869598,1740103849717,-580.62,0.0001452,2]
[353869599,1740103849728,-500.0,0.0001452,2]
[353869600,1740103849738,-2273.23,0.0001452,2]
[353869601,1740103849749,-500.0,0.0001452,2]
[353869602,1740103849764,-1263.28,0.0001452,2]
[353869603,1740103849779,-2448.71,0.0001452,2]
[353869604,1740103849792,-508.24773107,0.0001452,2]
[353869605,1740103849802,-860.48,0.0001452,2]
[353869606,1740103849814,-500.0,0.0001452,2]
[353869607,1740103849825,-500.0,0.0001452,2]
[353869608,1740103849840,-574.94,0.0001452,2]
[353869609,1740103849854,-500.0,0.0001452,2]
[353869610,1740103849865,-702.5,0.0001452,2]
[353869611,1740103849876,-1361.24,0.0001452,2]
[353869612,1740103849890,-500.0,0.0001452,2]
[353869613,1740103849902,-1319.72,0.0001452,2]
[353869614,1740103849915,-1665.41,0.0001452,2]
[353869615,1740103849929,-1335.88,0.0001452,2]
[353869616,1740103849942,-500.0,0.0001452,2]
[353869617,1740103849954,-500.0,0.0001452,2]
[353869618,1740103849967,-11700.84,0.0001452,2]
[353869619,1740103849980,-500.0,0.0001452,2]
[353869620,1740103849992,-3710.11,0.0001452,2]
[353869621,1740103850004,-500.0,0.0001452,2]
[353869622,1740103850016,-500.0,0.0001452,2]
[353869623,1740103850028,-1682.17,0.0001452,2]
[353869624,1740103850040,-1224.15,0.0001452,2]
[353869625,1740103850052,-500.0,0.0001452,2]
[353869626,1740103850064,-627.32,0.0001452,2]
[353869627,1740103850076,-500.0,0.0001452,2]
[353869628,1740103850087,-507.11130393,0.0001452,2]
[353869629,1740103850099,-500.0,0.0001452,2]
[353869630,1740103850111,-5211.79,0.0001452,2]
[353869631,1740103850123,-1488.6,0.0001452,2]
[353869632,1740103850134,-1693.02,0.0001452,2]
[353869633,1740103850145,-1270.09,0.0001452,2]
[353869634,1740103850156,-2494.63,0.0001452,2]
[353869635,1740103850168,-1010.65,0.0001452,2]
[353869636,1740103850180,-156.5715375,0.00014521,2]
[353869637,1740103850192,-154.7577468,0.00014521,2]
[353869638,1740103850206,-154.7577468,0.00014521,2]
[353869639,1740103850218,-154.7577468,0.00014521,2]
[353869640,1740103850230,-154.7577468,0.00014521,2]
[353869641,1740103850242,-501.3968598,0.00014587,2]
[353869642,1740103850254,-1000.0,0.00014598,2]
[353869643,1740103850266,-151.0,0.000146,2]
[353869644,1740103850279,-334.36327059,0.00014602,2]
[353869645,1740103850293,-500.0,0.00014602,2]
[353869646,1740103850305,-500.0,0.00014602,2]
[353869647,1740103850317,-507.48,0.00014602,2]
[353869648,1740103850328,-500.0,0.00014602,2]
[353869649,1740103850340,-656.6,0.00014602,2]
[353869650,1740103850351,-500.0,0.00014602,2]
[353869651,1740103850363,-618.95,0.00014602,2]
[353869652,1740103850374,-500.0,0.00014602,2]
[353869653,1740103850385,-500.0,0.00014602,2]
[353869654,1740103850397,-500.0,0.00014602,2]
[353869655,1740103850408,-500.0,0.00014602,2]
[353869656,1740103850420,-500.0,0.00014602,2]
[353869657,1740103850432,-518.7,0.00014602,2]
[353869658,1740103850443,-705.0,0.00014602,2]
[353869659,1740103850455,-500.0,0.00014602,2]
[353869660,1740103850466,-500.0,0.00014602,2]
[353869661,1740103850478,-500.0,0.00014602,2]
[353869662,1740103850490,-406.80901577,0.00014602,2]
[353869663,1740103850501,-676.23,0.00014602,2]
[353869664,1740103850512,-500.0,0.00014602,2]
[353869665,1740103850523,-784.49,0.00014602,2]
[353869666,1740103850556,-691.77,0.00014602,2]
[353869667,1740103850568,-1600.31,0.00014602,2]
[353869668,1740103850577,-758.34,0.00014602,2]
[353869669,1740103850587,-23723.89,0.00014602,2]
[353869670,1740103850776,-922.28,0.00014602,2]
[353869671,1740103850788,-500.0,0.00014602,2]
[353869672,1740103850798,-1243.5,0.00014602,2]
[353869673,1740103850808,-2146.67,0.00014602,2]
[353869674,1740103850818,-4235.7,0.00014602,2]
[353869675,1740103850827,-865.03,0.00014602,2]
[353869676,1740103850837,-500.0,0.00014602,2]
[353869677,1740103850850,-580.62,0.00014602,2]
[353869678,1740103850860,-500.0,0.00014602,2]
[353869679,1740103850869,-2273.23,0.00014602,2]
[353869680,1740103850879,-500.0,0.00014602,2]
[353869681,1740103850889,-1263.28,0.00014602,2]
[353869682,1740103850899,-2448.71,0.00014602,2]
[353869683,1740103850909,-860.48,0.00014602,2]
[353869684,1740103850921,-500.0,0.00014602,2]
[353869685,1740103850931,-500.0,0.00014602,2]
[353869686,1740103850941,-574.94,0.00014602,2]
[353869687,1740103850950,-500.0,0.00014602,2]
[353869688,1740103850960,-702.5,0.00014602,2]
[353869689,1740103850971,-1361.24,0.00014602,2]
[353869690,1740103850980,-500.0,0.00014602,2]
[353869691,1740103850990,-1319.72,0.00014602,2]
[353869692,1740103851000,-1665.41,0.00014602,2]
[353869693,1740103851010,-1335.88,0.00014602,2]
[353869694,1740103851019,-507.4301472,0.00014602,2]
[353869695,1740103851029,-500.0,0.00014602,2]
[353869696,1740103851038,-11700.84,0.00014602,2]
[353869697,1740103851048,-500.0,0.00014602,2]
[353869698,1740103851057,-3710.11,0.00014602,2]
[353869699,1740103851067,-506.26753492,0.00014602,2]
[353869700,1740103851076,-374.74986051,0.00014602,2]
[353869701,1740103851086,-1682.17,0.00014602,2]
[353869702,1740103851095,-1224.15,0.00014602,2]
[353869703,1740103851104,-500.0,0.00014602,2]
[353869704,1740103851113,-627.32,0.00014602,2]
[353869705,1740103851122,-500.0,0.00014602,2]
[353869706,1740103851132,-506.03743178,0.00014602,2]
[353869707,1740103851142,-5211.79,0.00014602,2]
[353869708,1740103851151,-1488.6,0.00014602,2]
[353869709,1740103851160,-1693.02,0.00014602,2]
[353869710,1740103851170,-1270.09,0.00014602,2]
[353869711,1740103851179,-2494.63,0.00014602,2]
[353869712,1740103851189,-1010.65,0.00014602,2]
[353869713,1740103851199,-606.11449744,0.0001465,2]
[353869714,1740103851208,-168.40801011,0.00014658,2]
[353869715,1740103851217,-465.64263971,0.00014671,2]
[353869716,1740103851227,-500.0,0.00014673,2]
[353869717,1740103851236,-500.0,0.00014684,2]
[353869718,1740103851245,-500.0,0.00014684,2]
[353869719,1740103851255,-507.48,0.00014684,2]
[353869720,1740103851264,-212.5615852,0.00014684,2]
[353869721,1740103851273,-656.6,0.00014684,2]
[353869722,1740103851283,-500.0,0.00014684,2]
[353869723,1740103851294,-618.95,0.00014684,2]
[353869724,1740103851303,-500.0,0.00014684,2]
[353869725,1740103851312,-500.0,0.00014684,2]
[353869726,1740103851321,-500.0,0.00014684,2]
[353869727,1740103851331,-500.0,0.00014684,2]
[353869728,1740103851341,-500.0,0.00014684,2]
[353869729,1740103851351,-518.7,0.00014684,2]
[353869730,1740103851360,-705.0,0.00014684,2]
[353869731,1740103851370,-500.0,0.00014684,2]
[353869732,1740103851379,-500.0,0.00014684,2]
[353869733,1740103851389,-500.0,0.00014684,2]
[353869734,1740103851398,-676.23,0.00014684,2]
[353869735,1740103851407,-500.0,0.00014684,2]
[353869736,1740103851417,-784.49,0.00014684,2]
[353869737,1740103851427,-691.77,0.00014684,2]
[353869738,1740103851436,-1600.31,0.00014684,2]
[353869739,1740103851446,-758.34,0.00014684,2]
[353869740,1740103851455,-23723.89,0.00014684,2]
[353869741,1740103851464,-922.28,0.00014684,2]
[353869742,1740103851473,-500.0,0.00014684,2]
[353869743,1740103851483,-1243.5,0.00014684,2]
[353869744,1740103851492,-2146.67,0.00014684,2]
[353869745,1740103851501,-4235.7,0.00014684,2]
[353869746,1740103851510,-865.03,0.00014684,2]
[353869747,1740103851520,-500.0,0.00014684,2]
[353869748,1740103851530,-580.62,0.00014684,2]
[353869749,1740103851539,-500.0,0.00014684,2]
[353869750,1740103851549,-2273.23,0.00014684,2]
[353869751,1740103851559,-500.0,0.00014684,2]
[353869752,1740103851568,-1263.28,0.00014684,2]
[353869753,1740103851578,-2448.71,0.00014684,2]
[353869754,1740103851587,-860.48,0.00014684,2]
[353869755,1740103851597,-500.0,0.00014684,2]
[353869756,1740103851606,-500.0,0.00014684,2]
[353869757,1740103851615,-574.94,0.00014684,2]
[353869758,1740103851625,-500.0,0.00014684,2]
[353869759,1740103851634,-702.5,0.00014684,2]
[353869760,1740103851644,-1361.24,0.00014684,2]
[353869761,1740103851654,-500.0,0.00014684,2]
[353869762,1740103851663,-1319.72,0.00014684,2]
[353869763,1740103851673,-1665.41,0.00014684,2]
[353869764,1740103851683,-1335.88,0.00014684,2]
[353869765,1740103851693,-500.0,0.00014684,2]
[353869766,1740103851703,-11700.84,0.00014684,2]
[353869767,1740103851716,-500.0,0.00014684,2]
[353869768,1740103851726,-3710.11,0.00014684,2]
[353869769,1740103851735,-1682.17,0.00014684,2]
[353869770,1740103851745,-1224.15,0.00014684,2]
[353869771,1740103851754,-500.0,0.00014684,2]
[353869772,1740103851765,-627.32,0.00014684,2]
[353869773,1740103851775,-500.0,0.00014684,2]
[353869774,1740103851785,-5211.79,0.00014684,2]
[353869775,1740103851794,-1488.6,0.00014684,2]
[353869776,1740103851804,-1693.02,0.00014684,2]
[353869777,1740103851813,-1270.09,0.00014684,2]
[353869778,1740103851822,-2494.63,0.00014684,2]
[353869779,1740103851832,-1010.65,0.00014684,2]
[353869780,1740103851843,-11886.80580219,0.00014713,2]
[353869781,1740103851853,-1001.60802219,0.00014721,2]
[353869782,1740103851862,-501.31698539,0.00014721,2]
[353869783,1740103851871,-500.8256556,0.00014721,2]
[353869784,1740103851883,-279.99377584,0.00014721,2]
[353869785,1740103851892,-1003.85790626,0.00014721,2]
[353869786,1740103851902,-517.12891589,0.00014721,2]
[353869787,1740103851911,-2023.44520446,0.00014749,2]
[353869788,1740103851920,-500.0,0.00014767,2]
[353869789,1740103851930,-500.0,0.00014767,2]
[353869790,1740103851940,-507.48,0.00014767,2]
[353869791,1740103851949,-656.6,0.00014767,2]
[353869792,1740103851959,-585.7547945,0.00014767,2]
[353869793,1740103851969,-618.95,0.00014767,2]
[353869794,1740103851978,-500.0,0.00014767,2]
[353869795,1740103851988,-500.0,0.00014767,2]
[353869796,1740103851997,-500.0,0.00014767,2]
[353869797,1740103852006,-500.0,0.00014767,2]
[353869798,1740103852016,-500.0,0.00014767,2]
[353869799,1740103852026,-518.7,0.00014767,2]
[353869800,1740103852037,-705.0,0.00014767,2]
[353869801,1740103852046,-500.0,0.00014767,2]
[353869802,1740103852056,-500.0,0.00014767,2]
[353869803,1740103852065,-500.0,0.00014767,2]
[353869804,1740103852074,-676.23,0.00014767,2]
[353869805,1740103852084,-500.0,0.00014767,2]
[353869806,1740103852093,-784.49,0.00014767,2]
[353869807,1740103852102,-691.77,0.00014767,2]
[353869808,1740103852112,-1600.31,0.00014767,2]
[353869809,1740103852121,-758.34,0.00014767,2]
[353869810,1740103852130,-23723.89,0.00014767,2]
[353869811,1740103852139,-922.28,0.00014767,2]
[353869812,1740103852149,-500.0,0.00014767,2]
[353869813,1740103852159,-1243.5,0.00014767,2]
[353869814,1740103852169,-2146.67,0.00014767,2]
[353869815,1740103852179,-4235.7,0.00014767,2]
[353869816,1740103852188,-865.03,0.00014767,2]
[353869817,1740103852198,-500.0,0.00014767,2]
[353869818,1740103852208,-580.62,0.00014767,2]
[353869819,1740103852217,-500.0,0.00014767,2]
[353869820,1740103852227,-2273.23,0.00014767,2]
[353869821,1740103852236,-500.0,0.00014767,2]
[353869822,1740103852246,-1263.28,0.00014767,2]
[353869823,1740103852256,-2448.71,0.00014767,2]
[353869824,1740103852265,-860.48,0.00014767,2]
[353869825,1740103852275,-500.0,0.00014767,2]
[353869826,1740103852283,-500.0,0.00014767,2]
[353869827,1740103852294,-574.94,0.00014767,2]
[353869828,1740103852304,-500.0,0.00014767,2]
[353869829,1740103852314,-702.5,0.00014767,2]
[353869830,1740103852324,-1361.24,0.00014767,2]
[353869831,1740103852334,-500.0,0.00014767,2]
[353869832,1740103852344,-1319.72,0.00014767,2]
[353869833,1740103852355,-1665.41,0.00014767,2]
[353869834,1740103852364,-1335.88,0.00014767,2]
[353869835,1740103852374,-500.0,0.00014767,2]
[353869836,1740103852384,-11700.84,0.00014767,2]
[353869837,1740103852394,-500.0,0.00014767,2]
[353869838,1740103852404,-3710.11,0.00014767,2]
[353869839,1740103852414,-1682.17,0.00014767,2]
[353869840,1740103852424,-1224.15,0.00014767,2]
[353869841,1740103852433,-500.0,0.00014767,2]
[353869842,1740103852444,-627.32,0.00014767,2]
[353869843,1740103852453,-500.0,0.00014767,2]
[353869844,1740103852463,-5211.79,0.00014767,2]
[353869845,1740103852472,-1488.6,0.00014767,2]
[353869846,1740103852482,-1693.02,0.00014767,2]
[353869847,1740103852492,-1270.09,0.00014767,2]
[353869848,1740103852501,-2494.63,0.00014767,2]
[353869849,1740103852510,-1010.65,0.00014767,2]
[353869850,1740103852520,-1000.0,0.000148,7]
[353869851,1740103852529,-151.0,0.000148,2]
[353869852,1740103852539,-1000.0,0.000148,9]
[353869853,1740103852549,-1000.0,0.000148,10]
[353869854,1740103852558,-500.0,0.00014849,2]
[353869855,1740103852567,-500.0,0.00014849,2]
[353869856,1740103852576,-507.48,0.00014849,2]
[353869857,1740103852585,-656.6,0.00014849,2]
[353869858,1740103852595,-618.95,0.00014849,2]
[353869859,1740103852604,-500.0,0.00014849,2]
[353869860,1740103852614,-500.0,0.00014849,2]
[353869861,1740103852624,-500.0,0.00014849,2]
[353869862,1740103852633,-500.0,0.00014849,2]
[353869863,1740103852642,-500.0,0.00014849,2]
[353869864,1740103852652,-518.7,0.00014849,2]
[353869865,1740103852661,-705.0,0.00014849,2]
[353869866,1740103852670,-500.0,0.00014849,2]
[353869867,1740103852680,-223.45127923,0.00014849,2]
[353869868,1740103852689,-500.0,0.00014849,2]
[353869869,1740103852699,-676.23,0.00014849,2]
[353869870,1740103852708,-500.0,0.00014849,2]
[353869871,1740103852717,-784.49,0.00014849,2]
[353869872,1740103852726,-691.77,0.00014849,2]
[353869873,1740103852735,-1600.31,0.00014849,2]
[353869874,1740103852745,-758.34,0.00014849,2]
[353869875,1740103852755,-23723.89,0.00014849,2]
[353869876,1740103852764,-922.28,0.00014849,2]
[353869877,1740103852774,-500.0,0.00014849,2]
[353869878,1740103852783,-1243.5,0.00014849,2]
[353869879,1740103852793,-2146.67,0.00014849,2]
[353869880,1740103852803,-4235.7,0.00014849,2]
[353869881,1740103852813,-865.03,0.00014849,2]
[353869882,1740103852823,-500.0,0.00014849,2]
[353869883,1740103852833,-580.62,0.00014849,2]
[353869884,1740103852844,-500.0,0.00014849,2]
[353869885,1740103852854,-2273.23,0.00014849,2]
[353869886,1740103852864,-507.43306106,0.00014849,2]
[353869887,1740103852873,-1263.28,0.00014849,2]
[353869888,1740103852883,-2448.71,0.00014849,2]
[353869889,1740103852893,-860.48,0.00014849,2]
[353869890,1740103852903,-500.0,0.00014849,2]
[353869891,1740103852913,-500.0,0.00014849,2]
[353869892,1740103852924,-574.94,0.00014849,2]
[353869893,1740103852933,-500.0,0.00014849,2]
[353869894,1740103852943,-702.5,0.00014849,2]
[353869895,1740103852953,-1361.24,0.00014849,2]
[353869896,1740103852963,-500.0,0.00014849,2]
[353869897,1740103852972,-1319.72,0.00014849,2]
[353869898,1740103852982,-1665.41,0.00014849,2]
[353869899,1740103852991,-1335.88,0.00014849,2]
[353869900,1740103853001,-500.0,0.00014849,2]
[353869901,1740103853011,-11700.84,0.00014849,2]
[353869902,1740103853021,-500.0,0.00014849,2]
[353869903,1740103853030,-3710.11,0.00014849,2]
[353869904,1740103853040,-1682.17,0.00014849,2]
[353869905,1740103853050,-1224.15,0.00014849,2]
[353869906,1740103853059,-500.0,0.00014849,2]
[353869907,1740103853069,-627.32,0.00014849,2]
[353869908,1740103853078,-500.0,0.00014849,2]
[353869909,1740103853088,-5211.79,0.00014849,2]
[353869910,1740103853097,-1488.6,0.00014849,2]
[353869911,1740103853107,-1693.02,0.00014849,2]
[353869912,1740103853116,-1270.09,0.00014849,2]
[353869913,1740103853126,-151.0,0.00014849,2]
[353869914,1740103853136,-2494.63,0.00014849,2]
[353869915,1740103853145,-1010.65,0.00014849,2]
[353869916,1740103853154,-212.007,0.00014853,2]
[353869917,1740103853164,-150.065,0.00014853,2]
[353869918,1740103853173,-279.694,0.00014853,2]
[353869919,1740103853183,-150.0,0.00014853,2]
[353869920,1740103853193,-1969.0,0.00014853,2]
[353869921,1740103853203,-538.0,0.00014853,2]
[353869922,1740103853212,-2288.0,0.00014853,2]
[353869923,1740103853222,-500.0,0.00014873,2]
[353869924,1740103853231,-500.0,0.00014873,2]
[353869925,1740103853240,-153.030156,0.000149,2]
[353869926,1740103853250,-151.0,0.000149,2]
[353869927,1740103853259,-199.196782,0.000149,2]
[353869928,1740103853268,-151.0,0.000149,2]
[353869929,1740103853278,-442232.60953615,0.000149,2]
[353869930,1740103853779,-500.83390052,0.00014109,2]
[353869938,1740104606159,377.074433,9.041e-05,2]
[353869945,1740104913232,1079.29552904,0.00018068,90]
[353869974,1740105032801,-4440.70733253,0.000118,2]
[353869975,1740105032812,-3977.52299362,0.00013,2]
[353869976,1740105032821,-700.0,0.00013068,2]
[353869977,1740105032831,-300.0,0.00013573,2]
[353869978,1740105032840,-912.09124177,0.00013574,2]
[353869979,1740105032850,-19966.72707862,0.000136,3]
[353869981,1740105032860,-163.00024776,0.00013673,2]
[353869983,1740105032869,-505.00793541,0.00013673,2]
[353869985,1740105032879,-500.51339194,0.00013673,2]
[353869987,1740105032889,-501.9673639,0.00013673,2]
[353869989,1740105032899,-152.10620942,0.0001369,2]
[353869991,1740105032908,-502.31514903,0.00013698,2]
[353869993,1740105032918,-244.76430313,0.00013698,2]
[353869995,1740105032928,-500.0,0.00013698,2]
[353869997,1740105032938,-231.37408552,0.00013698,2]
[353869999,1740105032948,-500.71003951,0.00013698,2]
[353870001,1740105032958,-503.06733579,0.00013698,2]
[353870003,1740105032968,-505.2701718,0.00013698,2]
[353870005,1740105032978,-501.50363282,0.00013698,2]
[353870008,1740105032988,-500.0,0.00013698,2]
[353870010,1740105032997,-506.5,0.00013698,2]
[353870012,1740105033007,-502.47852398,0.00013698,2]
[353870014,1740105033016,-500.0,0.00013698,2]
[353870016,1740105033026,-501.82646149,0.00013698,2]
[353870018,1740105033035,-508.14630445,0.00013698,2]
[353870020,1740105033044,-550.18859288,0.00013698,2]
[353870022,1740105033054,-504.46166821,0.00013698,2]
[353870024,1740105033064,-504.50930878,0.00013698,2]
[353870025,1740105033074,-500.78544856,0.00013698,2]
[353870026,1740105033084,-502.59844106,0.00013698,2]
[353870027,1740105033094,-501.73408496,0.00013698,2]
[353870028,1740105033103,-500.44771111,0.00013698,2]
[353870029,1740105033112,-580.73720256,0.00013698,2]
[353870030,1740105033122,-500.0,0.00013698,2]
[353870031,1740105033132,-500.0,0.00013698,2]
[353870032,1740105033142,-501.75896695,0.00013698,2]
[353870033,1740105033152,-500.59685916,0.00013698,2]
[353870034,1740105033162,-500.75136998,0.00013698,2]
[353870035,1740105033172,-505.26746628,0.00013698,2]
[353870036,1740105033183,-503.84253367,0.00013698,2]
[353870037,1740105033193,-500.7892689,0.00013698,2]
[353870038,1740105033204,-501.13972508,0.00013698,2]
[353870039,1740105033214,-500.84891397,0.00013698,2]